[Event "Early-Titled-Tuesday-Blitz-April-16-2024"]
[Site "Chess.com"]
[Date "2024.04.16"]
[Round "10"]
[White "superchess02"]
[Black "GoltsevDmitry2000"]
[Result "1-0"]
[WhiteElo "2911"]
[BlackElo "2778"]
[TimeControl "180+1"]
[EndTime "10:00:39 PDT"]
[Termination "superchess02 won by checkmate"]

1. d4 {[%clk 0:03:00.2]} 1... e6 {[%clk 0:03:00.2]} 2. c4 {[%clk 0:03:00.4]}
2... d5 {[%clk 0:02:54.4]} 3. Nc3 {[%clk 0:03:00.2]} 3... Nf6 {[%clk 0:02:52]}
4. Bg5 {[%clk 0:03:00.4]} 4... dxc4 {[%clk 0:02:51]} 5. e3 {[%clk 0:02:59.3]}
5... Be7 {[%clk 0:02:49.9]} 6. Bxc4 {[%clk 0:02:58.8]} 6... Nc6 {[%clk 0:02:49]}
7. Nf3 {[%clk 0:02:58.9]} 7... h6 {[%clk 0:02:47.4]} 8. Bh4 {[%clk 0:02:58.6]}
8... Nd5 {[%clk 0:02:47.5]} 9. Bxe7 {[%clk 0:02:49.3]} 9... Ncxe7 {[%clk
0:02:46.2]} 10. O-O {[%clk 0:02:49]} 10... O-O {[%clk 0:02:45.7]} 11. e4 {[%clk
0:02:49]} 11... Nf6 {[%clk 0:02:44.5]} 12. Qe2 {[%clk 0:02:45.5]} 12... a6
{[%clk 0:02:44.1]} 13. a4 {[%clk 0:02:44.9]} 13... b6 {[%clk 0:02:43.9]} 14.
Rfd1 {[%clk 0:02:42.4]} 14... Bb7 {[%clk 0:02:44.1]} 15. Rac1 {[%clk 0:02:43.1]}
15... Ng6 {[%clk 0:02:40.5]} 16. h3 {[%clk 0:02:38.4]} 16... Qe7 {[%clk
0:02:39.7]} 17. Qe3 {[%clk 0:02:35.8]} 17... Rfd8 {[%clk 0:02:37]} 18. Ba2
{[%clk 0:02:24.8]} 18... Rac8 {[%clk 0:02:31]} 19. Bb1 {[%clk 0:02:22.1]} 19...
c5 {[%clk 0:02:28]} 20. e5 {[%clk 0:02:17.6]} 20... Nd5 {[%clk 0:02:25.4]} 21.
Nxd5 {[%clk 0:02:17]} 21... Bxd5 {[%clk 0:02:26.3]} 22. Bxg6 {[%clk 0:02:16.5]}
22... fxg6 {[%clk 0:02:27.2]} 23. dxc5 {[%clk 0:02:16.5]} 23... Rxc5 {[%clk
0:02:26.8]} 24. Rxc5 {[%clk 0:02:15.6]} 24... Qxc5 {[%clk 0:02:27.3]} 25. Qd3
{[%clk 0:02:05.2]} 25... g5 {[%clk 0:02:16.2]} 26. Qxa6 {[%clk 0:01:55.5]} 26...
Ra8 {[%clk 0:02:11.1]} 27. Qd3 {[%clk 0:01:38.5]} 27... Rxa4 {[%clk 0:02:07.4]}
28. Nd4 {[%clk 0:01:38.8]} 28... Rc4 {[%clk 0:01:46.7]} 29. Ne2 {[%clk
0:01:18.3]} 29... Rc2 {[%clk 0:01:35.6]} 30. Rd2 {[%clk 0:01:06.4]} 30... Be4
{[%clk 0:01:22.3]} 31. Qd8+ {[%clk 0:01:03.7]} 31... Kh7 {[%clk 0:01:21.8]} 32.
Rxc2 {[%clk 0:00:42.9]} 32... Qxc2 {[%clk 0:01:22.7]} 33. Ng3 {[%clk 0:00:41.8]}
33... Bg6 {[%clk 0:01:14.7]} 34. Qxb6 {[%clk 0:00:40.3]} 34... Qc4 {[%clk
0:01:07.3]} 35. b4 {[%clk 0:00:35.5]} 35... h5 {[%clk 0:01:06.6]} 36. Qc5 {[%clk
0:00:34.2]} 36... Qb3 {[%clk 0:01:04]} 37. Qe3 {[%clk 0:00:29.7]} 37... Qb1+
{[%clk 0:00:53.7]} 38. Kh2 {[%clk 0:00:29.8]} 38... h4 {[%clk 0:00:47.3]} 39.
Ne2 {[%clk 0:00:29.7]} 39... Qxb4 {[%clk 0:00:29.8]} 40. Qxg5 {[%clk 0:00:22.3]}
40... Bf5 {[%clk 0:00:29.1]} 41. Nf4 {[%clk 0:00:21.5]} 41... Qd4 {[%clk
0:00:24.6]} 42. Qxh4+ {[%clk 0:00:20.6]} 42... Kg8 {[%clk 0:00:25.2]} 43. Ng6
{[%clk 0:00:20.7]} 43... Qc5 {[%clk 0:00:13.7]} 44. Ne7+ {[%clk 0:00:19.3]}
44... Kf7 {[%clk 0:00:13.5]} 45. Nxf5 {[%clk 0:00:19.1]} 45... exf5 {[%clk
0:00:14.4]} 46. f4 {[%clk 0:00:18.7]} 46... Qe3 {[%clk 0:00:13.7]} 47. Qh5+
{[%clk 0:00:17.8]} 47... g6 {[%clk 0:00:10.7]} 48. Qh7+ {[%clk 0:00:17.9]} 48...
Kf8 {[%clk 0:00:11.2]} 49. Qh8+ {[%clk 0:00:16.6]} 49... Kf7 {[%clk 0:00:10.1]}
50. Qf6+ {[%clk 0:00:16.8]} 50... Kg8 {[%clk 0:00:09.8]} 51. Qxg6+ {[%clk
0:00:17.6]} 51... Kh8 {[%clk 0:00:09.5]} 52. Qxf5 {[%clk 0:00:17.6]} 52... Qe1
{[%clk 0:00:09.7]} 53. e6 {[%clk 0:00:17.7]} 53... Kg7 {[%clk 0:00:09.3]} 54.
Qe5+ {[%clk 0:00:18]} 54... Qxe5 {[%clk 0:00:04.7]} 55. fxe5 {[%clk 0:00:18.9]}
55... Kf8 {[%clk 0:00:05.2]} 56. g4 {[%clk 0:00:18]} 56... Ke7 {[%clk
0:00:06.1]} 57. Kg3 {[%clk 0:00:18.9]} 57... Kxe6 {[%clk 0:00:07]} 58. Kf4
{[%clk 0:00:19.8]} 58... Kf7 {[%clk 0:00:07.9]} 59. h4 {[%clk 0:00:20.5]} 59...
Kg7 {[%clk 0:00:08.8]} 60. e6 {[%clk 0:00:21]} 60... Kh7 {[%clk 0:00:09.7]} 61.
e7 {[%clk 0:00:21]} 61... Kg7 {[%clk 0:00:10.6]} 62. e8=Q {[%clk 0:00:21.6]}
62... Kh6 {[%clk 0:00:11.5]} 63. Qe6+ {[%clk 0:00:21.4]} 63... Kg7 {[%clk
0:00:11.8]} 64. Kg5 {[%clk 0:00:21.7]} 64... Kh8 {[%clk 0:00:12.7]} 65. Qd7
{[%clk 0:00:21.7]} 65... Kg8 {[%clk 0:00:13.6]} 66. Kg6 {[%clk 0:00:22.6]} 66...
Kh8 {[%clk 0:00:14.2]} 67. Qd8# {[%clk 0:00:23.1]} 1-0

[Event "Early-Titled-Tuesday-Blitz-April-16-2024"]
[Site "Chess.com"]
[Date "2024.04.16"]
[Round "10"]
[White "LeoLV10"]
[Black "BallottiLuca"]
[Result "0-1"]
[WhiteElo "2503"]
[BlackElo "2394"]
[TimeControl "180+1"]
[EndTime "10:00:39 PDT"]
[Termination "BallottiLuca won by checkmate"]

1. e4 {[%clk 0:03:00.9]} 1... e5 {[%clk 0:02:59.8]} 2. Nf3 {[%clk 0:03:00.9]}
2... Nc6 {[%clk 0:02:59.6]} 3. Bb5 {[%clk 0:03:01.4]} 3... a6 {[%clk 0:02:56.9]}
4. Ba4 {[%clk 0:03:01.9]} 4... f5 {[%clk 0:02:54.2]} 5. d4 {[%clk 0:03:01.1]}
5... exd4 {[%clk 0:02:53.2]} 6. e5 {[%clk 0:03:01.2]} 6... Bc5 {[%clk
0:02:51.2]} 7. O-O {[%clk 0:03:00.6]} 7... Nge7 {[%clk 0:02:50.3]} 8. Bb3 {[%clk
0:02:50.9]} 8... d5 {[%clk 0:02:49.2]} 9. exd6 {[%clk 0:02:50.1]} 9... Qxd6
{[%clk 0:02:49.2]} 10. Nbd2 {[%clk 0:02:48.6]} 10... Be6 {[%clk 0:02:28.6]} 11.
Nc4 {[%clk 0:02:47.1]} 11... Qd7 {[%clk 0:02:18.8]} 12. Re1 {[%clk 0:02:44.7]}
12... Bd5 {[%clk 0:02:05.6]} 13. Nfe5 {[%clk 0:02:40.4]} 13... Nxe5 {[%clk
0:02:04.6]} 14. Nxe5 {[%clk 0:02:39.9]} 14... Qd6 {[%clk 0:02:02.6]} 15. Bxd5
{[%clk 0:02:34.5]} 15... Qxd5 {[%clk 0:02:03.5]} 16. Qh5+ {[%clk 0:02:32.7]}
16... Kf8 {[%clk 0:01:32.8]} 17. Bg5 {[%clk 0:02:25.3]} 17... Rd8 {[%clk
0:01:05.1]} 18. Bxe7+ {[%clk 0:02:23.5]} 18... Bxe7 {[%clk 0:00:57.3]} 19. Ng6+
{[%clk 0:02:20.2]} 19... hxg6 {[%clk 0:00:57.9]} 20. Qxh8+ {[%clk 0:02:20.3]}
20... Kf7 {[%clk 0:00:58.6]} 21. Qh3 {[%clk 0:02:09]} 21... Bf6 {[%clk
0:00:59.1]} 22. Rad1 {[%clk 0:02:06.4]} 22... c5 {[%clk 0:00:59.2]} 23. b3
{[%clk 0:02:02.7]} 23... b5 {[%clk 0:00:58.6]} 24. Qg3 {[%clk 0:02:01.4]} 24...
Rd7 {[%clk 0:00:57.8]} 25. Qb8 {[%clk 0:02:00.7]} 25... Be7 {[%clk 0:00:41.6]}
26. Qb6 {[%clk 0:01:41.3]} 26... Qd6 {[%clk 0:00:31.6]} 27. Qa5 {[%clk
0:01:16.7]} 27... Bf6 {[%clk 0:00:25.6]} 28. a4 {[%clk 0:01:14.8]} 28... b4
{[%clk 0:00:24.3]} 29. c3 {[%clk 0:00:40.6]} 29... Bd8 {[%clk 0:00:24]} 30. Qxd8
{[%clk 0:00:33.5]} 30... Rxd8 {[%clk 0:00:24.9]} 31. cxb4 {[%clk 0:00:34.3]}
31... cxb4 {[%clk 0:00:24.6]} 32. Rd3 {[%clk 0:00:35.2]} 32... Qd5 {[%clk
0:00:23]} 33. Red1 {[%clk 0:00:36.1]} 33... Rd7 {[%clk 0:00:21.7]} 34. g3 {[%clk
0:00:32.5]} 34... a5 {[%clk 0:00:21.9]} 35. h4 {[%clk 0:00:33]} 35... Kf6 {[%clk
0:00:21.2]} 36. R1d2 {[%clk 0:00:33.4]} 36... Qe4 {[%clk 0:00:20.8]} 37. Kh2
{[%clk 0:00:32]} 37... Qe1 {[%clk 0:00:15.5]} 38. Kg2 {[%clk 0:00:32.3]} 38...
Qa1 {[%clk 0:00:14.2]} 39. Kh2 {[%clk 0:00:30.2]} 39... Qb1 {[%clk 0:00:10.7]}
40. Kg2 {[%clk 0:00:29.8]} 40... Qe1 {[%clk 0:00:10.9]} 41. Rd1 {[%clk
0:00:23.5]} 41... Qe4+ {[%clk 0:00:10.6]} 42. Kh2 {[%clk 0:00:23.3]} 42... f4
{[%clk 0:00:10.2]} 43. g4 {[%clk 0:00:18.5]} 43... f3 {[%clk 0:00:09.6]} 44. Kg3
{[%clk 0:00:18.8]} 44... Ke5 {[%clk 0:00:07.2]} 45. R1d2 {[%clk 0:00:13.1]}
45... Rf7 {[%clk 0:00:05.6]} 46. Rd1 {[%clk 0:00:12.5]} 46... Qf4+ {[%clk
0:00:05.5]} 47. Kh3 {[%clk 0:00:12.9]} 47... Kd5 {[%clk 0:00:05.1]} 48. Re1
{[%clk 0:00:11.1]} 48... g5 {[%clk 0:00:05]} 49. h5 {[%clk 0:00:10.7]} 49... Rf8
{[%clk 0:00:04.8]} 50. Red1 {[%clk 0:00:09.3]} 50... Rh8 {[%clk 0:00:04.5]} 51.
Rxd4+ {[%clk 0:00:04.1]} 51... Qxd4 {[%clk 0:00:05.4]} 52. Rxd4+ {[%clk
0:00:05]} 52... Kxd4 {[%clk 0:00:05.7]} 53. Kg3 {[%clk 0:00:05.9]} 53... Kc3
{[%clk 0:00:06]} 54. Kxf3 {[%clk 0:00:06.8]} 54... Kxb3 {[%clk 0:00:06.6]} 55.
Ke4 {[%clk 0:00:07.7]} 55... Kxa4 {[%clk 0:00:06.9]} 56. Kf5 {[%clk 0:00:08.6]}
56... b3 {[%clk 0:00:07.4]} 57. Kg6 {[%clk 0:00:09.5]} 57... b2 {[%clk
0:00:07.4]} 58. Kxg7 {[%clk 0:00:10.4]} 58... Rc8 {[%clk 0:00:07.3]} 59. h6
{[%clk 0:00:10.1]} 59... b1=Q {[%clk 0:00:07.6]} 60. h7 {[%clk 0:00:11]} 60...
Rc7+ {[%clk 0:00:07.1]} 61. Kh6 {[%clk 0:00:11.6]} 61... Qxh7+ {[%clk
0:00:07.4]} 62. Kxg5 {[%clk 0:00:12.3]} 62... Rg7+ {[%clk 0:00:07.5]} 63. Kf4
{[%clk 0:00:13.2]} 63... Qg6 {[%clk 0:00:07.8]} 64. Kg3 {[%clk 0:00:14.1]} 64...
Qxg4+ {[%clk 0:00:07.9]} 65. Kh2 {[%clk 0:00:14.3]} 65... Qg2# {[%clk
0:00:08.1]} 0-1

[Event "Early-Titled-Tuesday-Blitz-April-16-2024"]
[Site "Chess.com"]
[Date "2024.04.16"]
[Round "10"]
[White "Vasily_IM"]
[Black "Witik"]
[Result "1/2-1/2"]
[WhiteElo "2567"]
[BlackElo "2700"]
[TimeControl "180+1"]
[EndTime "10:00:40 PDT"]
[Termination "Game drawn by agreement"]

1. d4 {[%clk 0:03:00.6]} 1... Nf6 {[%clk 0:03:00.1]} 2. c4 {[%clk 0:03:00.3]}
2... g6 {[%clk 0:03:00.2]} 3. Nc3 {[%clk 0:03:00]} 3... d5 {[%clk 0:03:00.4]} 4.
Bg5 {[%clk 0:02:59.6]} 4... Bg7 {[%clk 0:02:58.6]} 5. Bxf6 {[%clk 0:02:59.3]}
5... Bxf6 {[%clk 0:02:58.7]} 6. cxd5 {[%clk 0:02:59.9]} 6... c6 {[%clk
0:02:54.7]} 7. dxc6 {[%clk 0:02:59.5]} 7... Nxc6 {[%clk 0:02:53.9]} 8. e3 {[%clk
0:02:58.8]} 8... O-O {[%clk 0:02:51]} 9. Nf3 {[%clk 0:02:56.9]} 9... e5 {[%clk
0:02:36.9]} 10. d5 {[%clk 0:02:55.7]} 10... e4 {[%clk 0:02:37]} 11. dxc6 {[%clk
0:02:54.3]} 11... exf3 {[%clk 0:02:33.3]} 12. Qxd8 {[%clk 0:02:48.5]} 12... Rxd8
{[%clk 0:02:31.5]} 13. gxf3 {[%clk 0:02:46.9]} 13... bxc6 {[%clk 0:02:31.4]} 14.
Rc1 {[%clk 0:02:43.9]} 14... Rb8 {[%clk 0:02:25.4]} 15. b3 {[%clk 0:02:41.9]}
15... Be7 {[%clk 0:02:26]} 16. Be2 {[%clk 0:02:29.8]} 16... Ba3 {[%clk
0:02:20.6]} 17. Rc2 {[%clk 0:02:29.5]} 17... Bf5 {[%clk 0:02:21.2]} 18. Ne4
{[%clk 0:02:28.8]} 18... Bb4+ {[%clk 0:02:18.1]} 19. Kf1 {[%clk 0:02:27.8]}
19... Bh3+ {[%clk 0:02:18.7]} 20. Kg1 {[%clk 0:02:26.8]} 20... h6 {[%clk
0:02:09]} 21. f4 {[%clk 0:02:02.9]} 21... Rb5 {[%clk 0:01:58.8]} 22. f3 {[%clk
0:02:00.8]} 22... Rbd5 {[%clk 0:01:46.2]} 23. Kf2 {[%clk 0:01:57.4]} 23... Be7
{[%clk 0:01:45.8]} 24. Rhc1 {[%clk 0:01:53.9]} 24... Bh4+ {[%clk 0:01:44.2]} 25.
Ng3 {[%clk 0:01:53.5]} 25... Rd2 {[%clk 0:01:41.6]} 26. Ke1 {[%clk 0:01:43]}
26... Rxc2 {[%clk 0:01:03.8]} 27. Rxc2 {[%clk 0:01:42.4]} 27... Rd6 {[%clk
0:01:02.3]} 28. Rd2 {[%clk 0:01:39.8]} 28... Re6 {[%clk 0:01:00.5]} 29. Kf2
{[%clk 0:01:38.6]} 29... h5 {[%clk 0:01:00.2]} 30. Rd1 {[%clk 0:01:27.1]} 30...
Re8 {[%clk 0:00:50.9]} 31. Bf1 {[%clk 0:01:25.4]} 31... Bc8 {[%clk 0:00:48.7]}
32. Rc1 {[%clk 0:01:15.9]} 32... Bd7 {[%clk 0:00:33.9]} 33. Bd3 {[%clk
0:01:13.1]} 33... Bd8 {[%clk 0:00:33.5]} 34. Ne4 {[%clk 0:01:09.1]} 34... Kg7
{[%clk 0:00:30.9]} 35. Nc5 {[%clk 0:01:08.1]} 35... Bh3 {[%clk 0:00:28.4]} 36.
Be4 {[%clk 0:01:07.1]} 36... Bh4+ {[%clk 0:00:21.6]} 37. Ke2 {[%clk 0:01:06.1]}
37... Be7 {[%clk 0:00:14.1]} 38. Nd3 {[%clk 0:01:03.1]} 38... c5 {[%clk
0:00:07.4]} 39. Nxc5 {[%clk 0:00:59.4]} 39... g5 {[%clk 0:00:05.6]} 40. f5
{[%clk 0:00:50]} 40... Bf6 {[%clk 0:00:03.4]} 41. Nd3 {[%clk 0:00:47.9]} 41...
g4 {[%clk 0:00:03.7]} 42. Nf2 {[%clk 0:00:39.9]} 42... gxf3+ {[%clk 0:00:03.1]}
43. Kxf3 {[%clk 0:00:37.5]} 43... Bg4+ {[%clk 0:00:03.6]} 44. Nxg4 {[%clk
0:00:30.5]} 44... hxg4+ {[%clk 0:00:04.5]} 45. Kf4 {[%clk 0:00:30.7]} 45... Be5+
{[%clk 0:00:04.7]} 46. Kxg4 {[%clk 0:00:30.8]} 46... Bxh2 {[%clk 0:00:04.9]} 47.
Kf3 {[%clk 0:00:30.9]} 47... Be5 {[%clk 0:00:04.2]} 48. Rd1 {[%clk 0:00:30.2]}
48... Re7 {[%clk 0:00:04.8]} 49. Bc6 {[%clk 0:00:28.1]} 49... Kf6 {[%clk
0:00:04.9]} 50. Rd7 {[%clk 0:00:26.8]} 50... Rxd7 {[%clk 0:00:05]} 51. Bxd7
{[%clk 0:00:27.7]} 51... Bc7 {[%clk 0:00:05.3]} 52. Ke4 {[%clk 0:00:27]} 52...
Bb6 {[%clk 0:00:05.3]} 53. Kd3 {[%clk 0:00:26.4]} 53... Ke5 {[%clk 0:00:05.3]}
54. e4 {[%clk 0:00:25.5]} 54... f6 {[%clk 0:00:05]} 55. Bc6 {[%clk 0:00:25.5]}
55... Kd6 {[%clk 0:00:05.4]} 56. Bd5 {[%clk 0:00:26.3]} 56... Kc5 {[%clk
0:00:04.8]} 57. Kc3 {[%clk 0:00:26.6]} 57... Ba5+ {[%clk 0:00:04.6]} 58. Kd3
{[%clk 0:00:26.8]} 58... Bc7 {[%clk 0:00:05.3]} 59. Bc4 {[%clk 0:00:27.1]} 59...
Be5 {[%clk 0:00:05.2]} 60. a3 {[%clk 0:00:27.4]} 60... a5 {[%clk 0:00:05.8]} 61.
Kc2 {[%clk 0:00:25.5]} 61... Bd4 {[%clk 0:00:05.2]} 62. Bd5 {[%clk 0:00:25.2]}
62... Be5 {[%clk 0:00:05.7]} 63. Kd3 {[%clk 0:00:21.5]} 63... Bb2 {[%clk
0:00:05.9]} 64. a4 {[%clk 0:00:20.1]} 1/2-1/2

[Event "Early-Titled-Tuesday-Blitz-April-16-2024"]
[Site "Chess.com"]
[Date "2024.04.16"]
[Round "10"]
[White "Orphanator2009"]
[Black "GatoRojo150"]
[Result "1/2-1/2"]
[WhiteElo "2527"]
[BlackElo "2602"]
[TimeControl "180+1"]
[EndTime "10:00:44 PDT"]
[Termination "Game drawn by repetition"]

1. e4 {[%clk 0:03:00.9]} 1... e5 {[%clk 0:02:59.9]} 2. Nf3 {[%clk 0:03:00.8]}
2... Nc6 {[%clk 0:03:00.2]} 3. Nc3 {[%clk 0:03:01]} 3... Nf6 {[%clk 0:03:00]} 4.
d4 {[%clk 0:03:01.3]} 4... exd4 {[%clk 0:03:00.9]} 5. Nxd4 {[%clk 0:03:02.2]}
5... Bb4 {[%clk 0:03:00.7]} 6. Nxc6 {[%clk 0:03:02.7]} 6... bxc6 {[%clk
0:03:01.6]} 7. Bd3 {[%clk 0:03:03.1]} 7... d5 {[%clk 0:03:01.8]} 8. exd5 {[%clk
0:03:04]} 8... O-O {[%clk 0:03:01.4]} 9. O-O {[%clk 0:03:04.3]} 9... cxd5 {[%clk
0:03:02]} 10. h3 {[%clk 0:03:03.8]} 10... c6 {[%clk 0:02:55.7]} 11. Qf3 {[%clk
0:03:03.4]} 11... Nd7 {[%clk 0:02:55.7]} 12. Bf4 {[%clk 0:03:02.3]} 12... Nc5
{[%clk 0:02:55.1]} 13. Rfe1 {[%clk 0:02:56]} 13... Nxd3 {[%clk 0:02:52.7]} 14.
Qxd3 {[%clk 0:02:53.7]} 14... Qf6 {[%clk 0:02:51.4]} 15. Bd2 {[%clk 0:02:52.3]}
15... Bf5 {[%clk 0:02:49.8]} 16. Qg3 {[%clk 0:02:32.2]} 16... Bxc2 {[%clk
0:02:43.6]} 17. Nxd5 {[%clk 0:02:31]} 17... cxd5 {[%clk 0:02:28.7]} 18. Bxb4
{[%clk 0:02:30.6]} 18... Rfe8 {[%clk 0:02:15.8]} 19. Rec1 {[%clk 0:02:19.5]}
19... Bg6 {[%clk 0:01:50]} 20. Qc3 {[%clk 0:01:50.3]} 20... d4 {[%clk
0:01:43.3]} 21. Qd2 {[%clk 0:01:50]} 21... d3 {[%clk 0:01:39.9]} 22. Bc3 {[%clk
0:01:49.4]} 22... Qf5 {[%clk 0:01:33.6]} 23. Re1 {[%clk 0:01:48.8]} 23... h5
{[%clk 0:01:33.5]} 24. b3 {[%clk 0:01:43.1]} 24... Qd5 {[%clk 0:01:26.4]} 25.
Re3 {[%clk 0:01:31.2]} 25... Rxe3 {[%clk 0:01:25.2]} 26. Qxe3 {[%clk 0:01:32.1]}
26... Qc6 {[%clk 0:01:24.9]} 27. Qd4 {[%clk 0:01:28.9]} 27... f6 {[%clk
0:01:19.7]} 28. Rc1 {[%clk 0:01:18.9]} 28... Qe4 {[%clk 0:01:09.7]} 29. Qxe4
{[%clk 0:01:13.6]} 29... Bxe4 {[%clk 0:01:10.6]} 30. Bd2 {[%clk 0:01:14.5]}
30... Re8 {[%clk 0:01:03.2]} 31. Re1 {[%clk 0:01:11.1]} 31... Bg6 {[%clk
0:00:50.4]} 32. Rxe8+ {[%clk 0:01:12]} 32... Bxe8 {[%clk 0:00:51.1]} 33. f3
{[%clk 0:01:11.5]} 33... Bg6 {[%clk 0:00:40]} 34. Kf2 {[%clk 0:01:11.5]} 34...
Kf7 {[%clk 0:00:38.8]} 35. Ke3 {[%clk 0:01:12]} 35... Ke6 {[%clk 0:00:38.3]} 36.
Kd4 {[%clk 0:01:12.7]} 36... Bh7 {[%clk 0:00:35.3]} 37. a4 {[%clk 0:00:59.2]}
37... Kd6 {[%clk 0:00:30.9]} 38. b4 {[%clk 0:00:51.6]} 38... Kc6 {[%clk
0:00:25.3]} 39. b5+ {[%clk 0:00:49.7]} 39... Kb7 {[%clk 0:00:23]} 40. a5 {[%clk
0:00:41.5]} 40... Bf5 {[%clk 0:00:19.4]} 41. Kc5 {[%clk 0:00:40.5]} 41... Bd7
{[%clk 0:00:17.9]} 42. a6+ {[%clk 0:00:29.3]} 42... Kb8 {[%clk 0:00:16.3]} 43.
b6 {[%clk 0:00:24.8]} 43... axb6+ {[%clk 0:00:16]} 44. Kxb6 {[%clk 0:00:25.7]}
44... Ka8 {[%clk 0:00:16.1]} 45. Be3 {[%clk 0:00:21.7]} 45... Be6 {[%clk
0:00:15.3]} 46. Kc7 {[%clk 0:00:20.9]} 46... Bc4 {[%clk 0:00:15.1]} 47. a7
{[%clk 0:00:21]} 47... d2 {[%clk 0:00:13.7]} 48. Bxd2 {[%clk 0:00:21.4]} 48...
Bf1 {[%clk 0:00:14.4]} 49. h4 {[%clk 0:00:20.2]} 49... Bxg2 {[%clk 0:00:14.6]}
50. f4 {[%clk 0:00:20.1]} 50... Bf3 {[%clk 0:00:14]} 51. Be3 {[%clk 0:00:19.8]}
51... Bg4 {[%clk 0:00:13.3]} 52. Kd6 {[%clk 0:00:19.2]} 52... g6 {[%clk
0:00:13.8]} 53. Ke7 {[%clk 0:00:17.8]} 53... f5 {[%clk 0:00:12.6]} 54. Kf6
{[%clk 0:00:18.2]} 54... Kb7 {[%clk 0:00:13]} 55. Kxg6 {[%clk 0:00:18.8]} 55...
Ka8 {[%clk 0:00:13.4]} 56. Kf6 {[%clk 0:00:19.2]} 56... Kb7 {[%clk 0:00:14.1]}
57. Ke5 {[%clk 0:00:19.5]} 57... Ka8 {[%clk 0:00:14.8]} 58. Kd6 {[%clk
0:00:20.4]} 58... Kb7 {[%clk 0:00:15.3]} 59. Kc5 {[%clk 0:00:21.2]} 59... Ka8
{[%clk 0:00:15.8]} 60. Kc6 {[%clk 0:00:21.5]} 60... Bh3 {[%clk 0:00:15.2]} 61.
Kc7 {[%clk 0:00:21.1]} 61... Bg4 {[%clk 0:00:15.6]} 62. Bd4 {[%clk 0:00:21.6]}
62... Bh3 {[%clk 0:00:15.8]} 63. Kd7 {[%clk 0:00:22]} 63... Bg4 {[%clk 0:00:16]}
64. Ke7 {[%clk 0:00:22.6]} 64... Kb7 {[%clk 0:00:14.5]} 65. Kf6 {[%clk 0:00:23]}
65... Ka8 {[%clk 0:00:14.9]} 66. Ke6 {[%clk 0:00:22.2]} 66... Kb7 {[%clk
0:00:15.3]} 67. Kd6 {[%clk 0:00:22.5]} 67... Ka8 {[%clk 0:00:15.6]} 68. Kc7
{[%clk 0:00:23.1]} 68... Bf3 {[%clk 0:00:15.4]} 69. Kb6 {[%clk 0:00:23.4]} 69...
Bg4 {[%clk 0:00:15.6]} 70. Be5 {[%clk 0:00:24.1]} 70... Bh3 {[%clk 0:00:15.6]}
71. Bb8 {[%clk 0:00:25]} 71... Bg4 {[%clk 0:00:16]} 72. Kc7 {[%clk 0:00:25.9]}
72... Bh3 {[%clk 0:00:16.5]} 73. Kd6 {[%clk 0:00:26.8]} 73... Bg4 {[%clk
0:00:17]} 74. Ke5 {[%clk 0:00:27.7]} 74... Kb7 {[%clk 0:00:16.6]} 75. Kf6 {[%clk
0:00:28.6]} 75... Ka8 {[%clk 0:00:16.7]} 76. Kg5 {[%clk 0:00:29.5]} 76... Kb7
{[%clk 0:00:17.3]} 77. Kf6 {[%clk 0:00:29.9]} 77... Ka8 {[%clk 0:00:17.8]} 78.
Kg5 {[%clk 0:00:30.1]} 78... Kb7 {[%clk 0:00:18.2]} 79. Be5 {[%clk 0:00:30.2]}
79... Ka8 {[%clk 0:00:18.4]} 80. Bf6 {[%clk 0:00:30.6]} 80... Kxa7 {[%clk
0:00:18.5]} 81. Be5 {[%clk 0:00:31.5]} 81... Kb7 {[%clk 0:00:19]} 82. Bf6 {[%clk
0:00:32.4]} 82... Kc6 {[%clk 0:00:19.5]} 83. Be5 {[%clk 0:00:33.3]} 83... Kd5
{[%clk 0:00:20.1]} 84. Bf6 {[%clk 0:00:34.2]} 84... Ke4 {[%clk 0:00:20.7]} 85.
Be5 {[%clk 0:00:35.1]} 85... Kf3 {[%clk 0:00:21.3]} 86. Bf6 {[%clk 0:00:36]}
86... Ke4 {[%clk 0:00:21.9]} 87. Be5 {[%clk 0:00:36.9]} 87... Kf3 {[%clk
0:00:22.5]} 88. Bf6 {[%clk 0:00:37.8]} 88... Ke4 {[%clk 0:00:23.1]} 1/2-1/2